bitfinex/quotes_SOLUSD_20250919
["timestamp","ask_amount","ask_price","bid_price","bid_amount"]
[1758284215722,1.31289354,241.78,241.75,0.71]
[1758284215921,1.31289354,241.78,241.76,0.72]
[1758284216120,15.78831477,241.79,241.76,0.72]
[1758284216747,15.78831477,241.79,241.75,31.62]
[1758284216929,15.78831477,241.79,241.75,32.34]
[1758284217351,1.31289354,241.78,241.69,12.70488331]
[1758284217521,1.31289354,241.71,241.68,0.72]
[1758284218524,1.31289354,241.72,241.69,0.7]
[1758284218736,4.13718919,241.71,241.7,0.7]
[1758284220030,11.65541954,241.73,241.7,0.7]
[1758284221133,11.65541954,241.73,241.66,31.62]
[1758284221337,11.65541954,241.73,241.67,0.7]
[1758284221338,1.31289354,241.72,241.67,0.7]
[1758284221732,1.31289354,241.72,241.68,0.7]
[1758284221926,1.31289354,241.72,241.66,31.62]
[1758284222148,1.31289354,241.72,241.69,0.7]
[1758284222343,1.31289354,241.72,241.7,0.7]
[1758284223564,4.13718919,241.71,241.7,0.7]
[1758284226156,13.59559401,241.75,241.7,0.7]
[1758284226343,17.7312433,241.8,241.71,31.64]
[1758284226655,14.47477253,241.8,241.72,0.7]
[1758284227721,10.33912324,241.8,241.72,0.7]
[1758284229146,14.47477253,241.8,241.72,0.7]
[1758284232855,14.47477253,241.8,241.72,4.83699197]
[1758284233031,14.47477253,241.8,241.73,0.7]
[1758284240861,4.13564929,241.8,241.73,0.7]
[1758284241339,13.59559401,241.82,241.74,31.66]
[1758284241544,13.59559401,241.82,241.75,0.7]
[1758284241747,14.47321743,241.83,241.75,0.7]
[1758284242136,14.47321743,241.83,241.75,0.98432314]
[1758284242137,4.13513625,241.83,241.75,0.98432314]
[1758284242344,4.13513625,241.83,241.76,0.7]
[1758284242669,4.13489477,241.85,241.77,26.0]
[1758284242852,4.13489477,241.85,241.78,0.7]
[1758284243364,4.13489477,241.85,241.79,4.13582033]
[1758284243565,4.13489477,241.85,241.8,32.36]
[1758284243753,4.13489477,241.85,241.81,0.7]
[1758284244566,40.38225904,241.86,241.81,0.7]
[1758284245866,40.38225904,241.86,241.81,4.83545616]
[1758284246074,40.38225904,241.86,241.82,0.71]
[1758284246882,40.38225904,241.86,241.82,4.84525066]
[1758284247066,40.38225904,241.86,241.83,0.71]
[1758284249288,40.38225904,241.86,241.84,4.13496526]
[1758284249490,40.38225904,241.86,241.85,32.37]
[1758284250482,40.38225904,241.86,241.85,32.35]
[1758284251376,40.38225904,241.86,241.85,36.48479429]
[1758284251689,4.13342776,241.93,241.85,36.48479429]
[1758284251884,4.13342776,241.93,241.86,0.71]
[1758284252792,17.72885018,241.94,241.86,4.84456525]
[1758284252998,17.72885018,241.94,241.87,0.71]
[1758284255593,17.72885018,241.94,241.87,4.84444732]
[1758284255896,17.72885018,241.94,241.88,0.71]
[1758284256190,4.13325617,241.94,241.88,0.71]
[1758284256883,4.13291453,241.96,241.88,4.84422808]
[1758284257076,4.13291453,241.96,241.88,0.71]
[1758284257796,16.51848081,241.96,241.86,13.40666101]
[1758284258097,2.05327996,241.95,241.86,13.40666101]
[1758284258473,2.05327996,241.95,241.87,31.62]
[1758284259006,2.05327996,241.93,241.88,31.64]
[1758284259798,2.05327996,241.93,241.88,31.62]
[1758284259997,14.46639661,241.94,241.88,31.62]
[1758284259998,4.13325617,241.94,241.88,31.62]
[1758284260196,4.13325617,241.94,241.89,0.71]
[1758284260979,10.33193011,241.97,241.9,0.71]
[1758284260980,4.13308534,241.95,241.9,0.71]
[1758284262678,4.13308534,241.95,241.88,32.33]
[1758284262879,2.05327996,241.95,241.88,32.33]
[1758284263999,4.13325617,241.94,241.89,0.71]
[1758284264209,4.13325617,241.94,241.9,0.71]
[1758284265207,2.05327996,241.96,241.88,31.62]
[1758284265398,4.13308534,241.95,241.88,32.33]
[1758284265603,4.13308534,241.95,241.89,0.71]
[1758284265810,6.1863653,241.95,241.89,0.71]
[1758284268198,16.51907867,241.95,241.89,0.71]
[1758284270010,14.46579871,241.95,241.89,0.71]
[1758284271414,14.46579871,241.95,241.88,31.62]
[1758284271592,14.46579871,241.95,241.89,0.71]
[1758284275921,10.33271337,241.95,241.89,0.71]
[1758284276111,13.59559401,241.96,241.89,0.71]
[1758284276986,4.13274372,241.97,241.89,4.84410431]
[1758284277192,4.13274372,241.97,241.9,0.97432314]
[1758284277393,4.13274372,241.97,241.91,0.7]
[1758284278002,14.46302869,242.0,241.91,4.83372182]
[1758284278290,14.46302869,242.0,241.92,0.7]
[1758284279601,14.46302869,242.0,241.92,4.83359425]
[1758284279992,4.1322314,242.0,241.93,0.7]
[1758284280197,13.59559401,241.97,241.9,13.11028399]
[1758284280415,15.64887397,241.97,241.9,44.05028399]
[1758284280816,15.64887397,241.97,241.9,31.64]
[1758284281202,2.05327996,241.96,241.87,0.7]
[1758284281523,2.05327996,241.96,241.88,31.64]
[1758284281707,14.46579871,241.95,241.88,32.34]
[1758284281906,14.46579871,241.95,241.88,31.64]
[1758284282110,14.46579871,241.95,241.89,0.7]
[1758284283000,10.33271337,241.95,241.89,0.7]
[1758284288924,4.13274372,241.97,241.89,0.98432314]
[1758284289118,4.13274372,241.97,241.9,0.7]
[1758284290148,13.59559401,241.99,241.9,4.83381102]
[1758284290340,13.59559401,241.99,241.91,0.7]
[1758284292028,4.13257293,241.98,241.91,0.7]
[1758284292426,4.13257293,241.98,241.92,31.62]
[1758284292744,4.13257293,241.98,241.91,0.7]
[1758284292948,4.13257293,241.98,241.93,31.62]
[1758284293245,4.13257293,241.98,241.93,32.32]
[1758284293448,4.13257293,241.98,241.91,0.7]
[1758284293629,4.13257293,241.98,241.94,31.62]
[1758284295444,4.13257293,241.98,241.94,32.32]
[1758284296043,14.46280991,242.0,241.94,31.62]
[1758284296245,14.46280991,242.0,241.95,0.7]
[1758284296751,14.46280991,242.0,241.94,31.62]
[1758284297256,10.33057851,242.0,241.94,31.62]
[1758284297428,10.33057851,242.0,241.94,32.32]
[1758284298855,10.33057851,242.0,241.95,0.7]
[1758284299057,10.33057851,242.0,241.94,31.62]
[1758284299263,4.13206065,242.01,241.96,0.7]
[1758284299433,4.13206065,242.01,241.97,0.7]
[1758284301030,4.13206065,242.01,241.98,0.7]
[1758284301231,4.23182481,242.03,241.99,31.62]
[1758284301438,4.23182481,242.03,242.0,0.7]
[1758284301632,4.23182481,242.03,242.01,0.7]
[1758284301837,4.23182481,242.03,241.99,31.62]
[1758284302039,4.23182481,242.03,242.0,0.7]
[1758284303046,4.23182481,242.03,241.99,31.62]
[1758284303047,4.23182481,242.03,242.01,0.7]
[1758284303234,4.23182481,242.03,241.99,32.32]
[1758284303559,4.23182481,242.03,242.0,0.7]
[1758284306555,4.23182481,242.03,242.01,0.68]
[1758284307843,4.23182481,242.03,241.99,32.3]
[1758284308046,4.23182481,242.03,242.0,0.68]
[1758284309143,4.23182481,242.03,241.99,31.62]
[1758284309340,4.23182481,242.03,242.0,0.68]
[1758284310559,4.23182481,242.03,242.01,0.68]
[1758284311057,4.23182481,242.03,242.02,31.6]
[1758284313241,4.23182481,242.03,242.02,32.28]
[1758284315568,0.1,242.03,242.02,32.28]
[1758284317252,4.2317192,242.03,242.02,0.68]
[1758284317440,0.1,242.03,242.02,32.28]
[1758284317640,0.1,242.03,242.02,36.41188992]
[1758284317965,0.1,242.05,242.02,32.28]
[1758284318161,0.1,242.05,242.03,0.68]
[1758284320563,0.1,242.05,242.04,32.28]
[1758284320564,4.23139627,242.05,242.04,32.28]
[1758284321357,0.1,242.05,242.04,32.28]
[1758284322372,0.1,242.05,242.04,0.68]
[1758284322674,0.1,242.05,242.04,32.28]
[1758284328049,0.1,242.05,242.04,32.56432314]
[1758284330766,0.1,242.05,242.04,32.28]
[1758284331070,4.23137781,242.05,242.04,0.68]
[1758284331269,4.23137781,242.05,242.04,32.28]
[1758284331472,4.23137781,242.05,242.04,36.41121142]
[1758284331677,4.23137781,242.05,242.04,4.81121142]
[1758284331863,4.23137781,242.05,242.04,36.41121142]
[1758284332065,0.1,242.05,242.04,36.41121142]
[1758284334978,0.1,242.05,242.04,36.69553456]
[1758284335485,0.1,242.05,242.04,40.96924463]
[1758284337190,0.1,242.08,242.07,26.0]
[1758284337385,0.1,242.09,242.07,57.82]
[1758284337685,0.1,242.09,242.07,26.0]
[1758284337870,0.1,242.09,242.07,26.7]
[1758284338073,0.1,242.09,242.08,31.9]
[1758284338406,0.1,242.09,242.08,32.61]
[1758284338965,0.1,242.09,242.08,42.93479345]
[1758284339376,0.1,242.09,242.08,47.49214398]
[1758284340792,0.1,242.09,242.08,42.20479345]
[1758284340975,0.1,242.09,242.08,11.03479345]
[1758284341177,0.1,242.09,242.08,42.93479345]
[1758284345911,0.1,242.09,242.08,11.03479345]
[1758284346191,0.1,242.09,242.08,42.91479345]
[1758284346576,0.1,242.09,242.08,11.03479345]
[1758284346777,0.1,242.09,242.08,42.91479345]
[1758284346977,0.1,242.09,242.08,11.03479345]
[1758284347387,0.1,242.09,242.08,42.91479345]
[1758284349704,0.1,242.09,242.08,42.89479345]
[1758284351804,0.1,242.09,242.08,42.18479345]
[1758284353210,0.1,242.09,242.08,10.32479345]
[1758284353421,4.23069519,242.09,242.08,10.32479345]
[1758284353710,4.23069519,242.09,242.08,31.84]
[1758284354298,4.23069519,242.09,242.05,0.71]
[1758284354500,4.23069519,242.09,242.06,32.57]
[1758284354695,4.23069519,242.09,242.07,0.71]
[1758284354900,4.23069519,242.09,242.08,31.84]
[1758284355515,14.75743318,242.09,242.0,0.71]
[1758284355813,14.75743318,242.09,241.96,10.33200592]
[1758284355814,14.75743318,242.09,242.01,43.09565271]
[1758284355999,14.75743318,242.09,242.02,31.86]
[1758284356603,0.2,242.08,242.02,31.86]
[1758284358021,0.2,242.08,242.02,32.57]
[1758284358703,4.13103647,242.07,242.02,32.57]
[1758284358895,4.13103647,242.07,242.03,0.71]
[1758284359098,4.13103647,242.07,242.04,31.84]
[1758284359599,4.13103647,242.07,242.05,31.84]
[1758284359820,4.13103647,242.07,242.03,0.71]
[1758284360507,4.13086582,242.08,242.04,31.84]
[1758284360819,4.13086582,242.08,242.05,31.84]
[1758284361018,4.13086582,242.08,242.06,31.84]
[1758284368326,4.13086582,242.08,242.06,32.5]
[1758284370119,4.13086582,242.08,242.06,31.84]
[1758284370827,4.13086582,242.08,242.06,32.5]
[1758284373225,4.13086582,242.08,242.06,31.84]
[1758284373526,4.13086582,242.08,242.05,31.78]
[1758284373711,4.13086582,242.08,242.05,32.44]
[1758284374101,4.13086582,242.08,242.06,0.66]
[1758284376136,4.13086582,242.08,242.07,0.66]
[1758284376518,4.13086582,242.08,242.06,0.66]
[1758284378033,0.1,242.09,242.06,0.66]
[1758284378807,0.1,242.09,242.07,35.91086582]
[1758284379233,0.1,242.09,242.08,0.66]
[1758284383138,4.23070657,242.09,242.04,0.66]
[1758284383320,4.23070657,242.09,242.05,31.76]
[1758284383641,14.55744456,242.09,242.05,32.42]
[1758284385837,14.55744456,242.09,242.05,31.76]
[1758284385838,14.75744456,242.09,242.05,31.76]
[1758284386012,14.55744456,242.09,242.05,31.76]
[1758284386216,14.55744456,242.09,242.05,32.42]
[1758284386439,14.55744456,242.09,242.06,0.66]
[1758284388339,14.55744456,242.09,242.05,31.76]
[1758284389222,14.55744456,242.09,242.04,0.66]
[1758284389423,14.55744456,242.09,242.05,0.66]
[1758284390445,14.55744456,242.09,242.06,0.66]
[1758284390958,14.55744456,242.09,242.04,32.42]
[1758284391140,14.55744456,242.09,242.04,31.76]
[1758284391355,14.55744456,242.09,242.05,0.66]
[1758284391524,14.55744456,242.09,242.04,31.76]
[1758284391728,14.55744456,242.09,242.05,0.66]
[1758284391930,14.55744456,242.09,242.06,0.66]
[1758284392151,14.55744456,242.09,242.07,0.66]
[1758284392329,14.55744456,242.09,242.06,0.66]
[1758284393556,14.75744456,242.09,242.04,32.42]
[1758284394072,14.55744456,242.09,242.05,0.66]
[1758284394423,14.55744456,242.09,242.06,0.66]
[1758284396168,14.55744456,242.09,242.07,0.71]
[1758284396361,14.55744456,242.09,242.06,0.71]
[1758284396767,14.55744456,242.09,242.04,31.76]
[1758284396952,14.55744456,242.09,242.07,0.71]
[1758284398179,14.55744456,242.09,242.04,31.76]
[1758284398363,14.55744456,242.09,242.05,0.71]
[1758284398671,14.55744456,242.09,242.06,0.71]
[1758284398844,14.55744456,242.09,242.04,31.76]
[1758284399035,14.75744456,242.09,242.04,32.47]
[1758284399236,14.55744456,242.09,242.04,32.47]
[1758284399432,14.55744456,242.09,242.04,32.43]
[1758284399637,14.55744456,242.09,241.98,26.0]
[1758284399638,0.1,242.09,242.05,0.71]
[1758284399852,0.1,242.09,242.06,31.72]
[1758284400038,4.23069634,242.09,242.07,0.71]
[1758284400238,17.82629035,242.09,242.08,0.71]
[1758284400466,4.23069634,242.09,242.06,31.72]
[1758284400861,13.59559401,242.08,242.05,31.72]
[1758284401066,4.13103647,242.07,242.05,31.72]
[1758284401249,4.13103647,242.07,242.05,32.43]
[1758284402362,4.13103647,242.07,242.06,0.71]
[1758284403380,4.13103647,242.07,242.05,31.72]
[1758284403537,16.50720263,242.07,242.01,0.71]
[1758284403743,16.50720263,242.07,242.02,31.7]
[1758284403958,16.50720263,242.07,242.03,0.71]
[1758284404145,14.45862766,242.07,242.03,0.71]
[1758284404353,14.45862766,242.07,242.02,31.7]
[1758284404550,14.45862766,242.07,242.04,0.71]
[1758284404960,14.45862766,242.07,242.02,32.41]
[1758284405169,14.45862766,242.07,242.03,0.71]
[1758284405677,14.45862766,242.07,242.04,0.71]
[1758284407467,14.45862766,242.07,242.01,0.71]
[1758284407468,15.64416898,242.06,242.01,0.71]
[1758284407676,13.59559401,242.06,242.01,32.41]
[1758284408282,13.59559401,242.06,241.96,26.0]
[1758284408283,2.04857497,242.04,241.99,32.41]
[1758284408457,13.59559401,242.02,241.99,31.7]
[1758284408852,15.64416898,242.02,241.99,31.7]
[1758284409479,4.13206065,242.01,241.99,31.7]
[1758284409909,14.46221229,242.01,241.97,0.71]
[1758284410083,14.46221229,242.01,241.92,26.0]
[1758284410273,14.46221229,242.01,241.93,31.7]
[1758284410478,14.46221229,242.01,241.94,0.71]
[1758284410727,16.51078726,242.01,241.94,0.71]
[1758284411019,13.59559401,242.0,241.94,0.71]
[1758284411214,13.59559401,242.0,241.94,32.41]
[1758284411215,15.84416898,242.0,241.94,32.41]
[1758284411504,13.59559401,241.98,241.94,32.41]
[1758284411674,13.59559401,241.98,241.94,0.71]
[1758284411874,15.64416898,241.98,241.92,32.41]
[1758284413890,4.13274372,241.97,241.92,32.41]
[1758284414089,4.13274372,241.97,241.93,0.71]
[1758284414287,4.13274372,241.97,241.94,0.71]
[1758284414725,13.59559401,241.96,241.92,0.71]
[1758284415216,13.59559401,241.96,241.93,0.71]
[1758284415519,15.64416898,241.96,241.89,0.71]
[1758284415816,13.59559401,241.94,241.9,0.71]
[1758284416026,14.46699458,241.93,241.89,31.7]
[1758284416529,14.90834589,241.92,241.86,0.71]
[1758284416819,13.79559401,241.92,241.86,0.71]
[1758284417031,13.59559401,241.9,241.86,0.71]
[1758284417519,13.59559401,241.9,241.85,31.7]
[1758284417707,4.13411054,241.89,241.87,0.71]
[1758284417910,4.13411054,241.89,241.85,32.41]
[1758284418213,4.13411054,241.89,241.86,0.71]
[1758284418214,14.4693869,241.89,241.86,0.71]
[1758284420661,13.59559401,241.88,241.84,0.71]
[1758284420821,13.59559401,241.88,241.83,32.4]
[1758284420822,13.79559401,241.88,241.83,32.4]
[1758284421021,13.59559401,241.86,241.83,0.7]
[1758284421327,1.31275188,241.86,241.83,0.7]
[1758284421523,1.31275188,241.85,241.83,0.7]
[1758284422043,17.73055927,241.84,241.83,0.7]
[1758284423355,19.04331115,241.84,241.83,0.7]
[1758284423530,19.24331115,241.84,241.83,0.7]
[1758284423725,19.04331115,241.84,241.83,0.7]
[1758284424233,1.31275188,241.85,241.83,0.7]
[1758284426136,4.13496526,241.84,241.83,0.7]
[1758284426332,5.44771714,241.84,241.83,0.7]
[1758284426759,5.64771714,241.84,241.83,0.7]
[1758284427052,5.44771714,241.84,241.83,0.7]
[1758284431751,30.13496526,241.84,241.83,0.7]
[1758284432050,43.73055927,241.84,241.83,0.7]
[1758284432353,45.04331115,241.84,241.83,0.7]
[1758284433827,19.04331115,241.84,241.83,0.7]
[1758284434963,45.04331115,241.84,241.83,0.7]
[1758284436527,31.44771714,241.84,241.83,0.7]
[1758284437035,45.04331115,241.84,241.83,0.7]
[1758284438260,43.73055927,241.84,241.83,0.7]
[1758284438575,45.04331115,241.84,241.83,0.7]
[1758284440168,31.44771714,241.84,241.83,0.7]
[1758284441279,45.04331115,241.84,241.83,0.7]
[1758284441784,63.84555172,241.84,241.83,0.7]
[1758284441963,63.86555172,241.84,241.83,0.7]
[1758284442679,62.55279984,241.84,241.83,0.7]
[1758284442887,63.86555172,241.84,241.83,0.7]
[1758284443079,65.52183212,241.84,241.83,0.7]
[1758284443674,85.9100885,241.84,241.83,0.7]
[1758284444351,54.1700885,241.84,241.83,0.7]
[1758284444575,65.52183212,241.84,241.83,0.7]
[1758284444965,78.37463216,241.84,241.83,0.7]
[1758284449580,78.37463216,241.84,241.83,1e-08]
[1758284451177,40.02207872,241.8,241.79,0.2]
[1758284451379,73.0548306,241.8,241.79,0.2]
[1758284451761,77.19047989,241.8,241.79,0.2]
[1758284452477,78.84696607,241.8,241.79,0.2]
[1758284452689,78.84696607,241.8,241.77,0.2]
[1758284452690,13.59559401,241.78,241.77,0.2]
[1758284452863,47.0548306,241.78,241.77,0.2]
[1758284453382,48.71145398,241.78,241.77,0.2]
[1758284453690,52.84744537,241.78,241.77,0.2]
[1758284459002,20.70096066,241.78,241.77,0.89]
[1758284459174,52.42096066,241.78,241.77,0.89]
[1758284459699,50.76433728,241.78,241.77,0.89]
[1758284461289,49.4515854,241.78,241.77,0.89]
[1758284461494,50.76433728,241.78,241.77,0.89]
[1758284462773,50.78433728,241.78,241.77,0.89]
[1758284463472,50.76433728,241.78,241.77,0.89]
[1758284463670,19.04433728,241.78,241.77,0.89]
[1758284463869,50.76433728,241.78,241.77,0.89]
[1758284464788,46.62834589,241.78,241.77,0.89]
[1758284465976,50.76433728,241.78,241.77,0.89]
[1758284466202,49.4515854,241.78,241.77,0.89]
[1758284466402,50.76433728,241.78,241.77,0.89]
[1758284466607,19.04433728,241.78,241.77,0.89]
[1758284466776,50.76433728,241.78,241.77,0.89]
[1758284467211,49.4515854,241.78,241.77,0.89]
[1758284467404,50.76433728,241.78,241.77,0.89]
[1758284468583,50.76433728,241.78,241.77,0.2]
[1758284469178,52.42089206,241.78,241.77,0.2]
[1758284470302,52.84737677,241.78,241.77,0.2]
[1758284472218,53.04737677,241.78,241.77,0.2]
[1758284472915,53.04737677,241.78,241.67,0.89]
[1758284472916,39.59559401,241.68,241.67,0.89]
[1758284473120,72.62834589,241.68,241.67,0.2]
[1758284473624,72.66834589,241.68,241.67,0.89]
[1758284474089,40.90834589,241.68,241.67,0.89]
[1758284474291,72.66834589,241.68,241.67,0.2]
[1758284474499,77.23253334,241.68,241.67,0.2]
[1758284474681,47.12970578,241.68,241.67,0.2]
[1758284474884,78.88970578,241.68,241.67,0.2]
[1758284475398,79.08970578,241.68,241.67,0.2]
[1758284476209,79.08970578,241.68,241.63,0.2]
[1758284476210,83.6731297,241.68,241.63,0.2]
[1758284476414,15.3348306,241.64,241.63,0.2]
[1758284476613,19.47321828,241.64,241.63,0.2]
[1758284476830,19.47321828,241.64,241.63,0.89]
[1758284476831,33.16296805,241.64,241.63,0.89]
[1758284477110,70.37410761,241.64,241.63,0.89]
[1758284477882,70.98089789,241.64,241.63,0.89]
[1758284478693,72.63848238,241.64,241.63,0.89]
[1758284479696,40.87848238,241.64,241.63,0.89]
[1758284480013,40.45199767,241.64,241.63,0.89]
[1758284480212,36.31360999,241.64,241.63,0.89]
[1758284480386,66.15406783,241.64,241.63,0.89]
[1758284481592,70.29245551,241.64,241.63,0.89]
[1758284482111,72.63848238,241.64,241.63,0.2]
[1758284483086,38.53245551,241.64,241.63,0.89]
[1758284483292,72.23199767,241.64,241.63,0.89]
[1758284484008,70.31245551,241.64,241.63,0.89]
[1758284484202,72.23199767,241.64,241.63,0.89]
[1758284484615,72.23199767,241.64,241.63,0.2]
[1758284485195,40.45199767,241.64,241.63,0.89]
[1758284485595,72.23199767,241.64,241.63,0.89]
[1758284487815,40.45199767,241.64,241.63,0.89]
[1758284488018,72.23199767,241.64,241.63,0.89]
[1758284488826,34.39406783,241.64,241.63,0.89]
[1758284489028,64.51648334,241.64,241.63,0.89]
[1758284490015,32.73648334,241.64,241.63,0.89]
[1758284490313,19.14088933,241.64,241.63,0.89]
[1758284490498,17.70088933,241.64,241.63,0.89]
[1758284492627,31.29648334,241.64,241.63,0.89]
[1758284492818,35.43487102,241.64,241.63,0.89]
[1758284492991,31.29648334,241.64,241.63,0.2]
[1758284493501,31.29648334,241.64,241.63,0.9]
[1758284494011,17.70088933,241.64,241.63,0.9]
[1758284497305,17.70088933,241.64,241.63,0.2]
[1758284498814,31.29648334,241.64,241.63,0.2]
[1758284499123,32.01648334,241.64,241.63,0.2]
[1758284500009,31.29648334,241.64,241.63,0.2]
[1758284502726,13.59559401,241.64,241.63,0.2]
[1758284505437,14.31559401,241.64,241.63,0.2]
[1758284505728,18.45398169,241.64,241.63,0.2]
[1758284506403,20.37352385,241.64,241.63,0.2]
[1758284507134,52.17352385,241.64,241.63,0.2]
[1758284507529,54.40972394,241.64,241.63,0.2]
[1758284508511,56.06717105,241.64,241.63,0.2]
[1758284508829,54.40972394,241.64,241.63,0.2]
[1758284510333,52.49018178,241.64,241.63,0.2]
[1758284512014,78.49018178,241.64,241.63,0.2]
[1758284512215,80.40972394,241.64,241.63,0.2]
[1758284512515,2.23620009,241.64,241.63,0.9]
[1758284512727,2.23620009,241.64,241.63,5.03855895]
[1758284513134,2.23620009,241.64,241.63,0.9]
[1758284521021,2.23620009,241.64,241.63,5.03855895]
[1758284521418,2.23620009,241.64,241.63,5.32288209]
[1758284521632,13.59559401,241.75,241.64,0.28432314]
[1758284521836,0.65,241.78,241.65,0.7]
[1758284522014,13.59559401,241.76,241.65,0.7]
[1758284522220,0.65,241.75,241.65,0.7]
[1758284522419,0.65,241.75,241.66,31.8]
[1758284522615,13.59559401,241.76,241.67,0.7]
[1758284522840,0.65,241.74,241.67,0.7]
[1758284524048,0.65,241.74,241.67,4.83785611]
[1758284524723,0.65,241.74,241.67,4.13785611]
[1758284525058,13.59559401,241.76,241.68,0.7]
[1758284525218,0.65,241.79,241.68,26.7]
[1758284525564,18.9863178,241.83,241.71,10.76945769]
[1758284525724,18.9863178,241.83,241.73,0.28432314]
[1758284526041,0.65,241.82,241.74,0.7]
[1758284526345,13.59559401,241.81,241.74,32.5]
[1758284527830,16.16513617,241.82,241.74,32.5]
[1758284528145,13.59559401,241.81,241.74,31.8]
[1758284528348,13.59559401,241.81,241.75,0.7]
[1758284529428,15.51513617,241.79,241.7,0.7]
[1758284529629,13.59559401,241.77,241.7,0.7]
[1758284529842,1.91954216,241.76,241.7,0.7]
[1758284530049,2.56954216,241.76,241.7,0.7]
[1758284530345,0.65,241.76,241.7,0.7]
[1758284531348,0.65,241.76,241.69,0.7]
[1758284531849,0.65,241.76,241.69,32.5]
[1758284532030,0.65,241.76,241.69,0.7]
[1758284532349,0.65,241.76,241.67,12.42210306]
[1758284532350,1.91954216,241.74,241.67,12.42210306]
[1758284532550,14.24559401,241.73,241.67,44.22210306]
[1758284532738,14.24559401,241.73,241.67,31.8]
[1758284533045,1.91954216,241.77,241.68,0.7]
[1758284533248,13.59559401,241.76,241.68,0.7]
[1758284533458,2.56954216,241.75,241.68,0.7]
[1758284533947,0.65,241.75,241.68,0.7]
[1758284534154,0.65,241.75,241.68,4.83768797]
[1758284534332,13.59559401,241.77,241.69,0.7]
[1758284534531,0.65,241.76,241.69,0.7]
[1758284536156,2.56954216,241.76,241.69,32.5]
[1758284536450,0.65,241.75,241.69,32.5]
[1758284538735,0.65,241.75,241.69,32.5]
[1758284540062,6.10090548,241.77,241.7,0.7]
[1758284541463,0.65,241.77,241.7,0.7]
[1758284541672,13.59559401,241.78,241.7,4.8373005]
[1758284541836,13.59559401,241.79,241.71,0.7]
[1758284542345,0.65,241.8,241.71,0.7]
[1758284543261,14.24559401,241.82,241.71,0.7]
[1758284543556,14.24559401,241.82,241.72,4.13701803]
[1758284543757,14.24559401,241.82,241.73,0.7]
[1758284545048,18.38097047,241.82,241.73,0.7]
[1758284545275,19.69567788,241.82,241.69,26.0]
[1758284545474,13.59559401,241.81,241.7,32.5]
[1758284545666,1.31470741,241.79,241.7,36.63736036]
[1758284545979,0.7,241.78,241.7,36.63736036]
[1758284546149,0.7,241.77,241.7,31.8]
[1758284546351,0.7,241.76,241.7,31.8]
[1758284547949,26.7,241.79,241.71,0.7]
[1758284548155,0.7,241.79,241.71,0.7]
[1758284548477,13.59559401,241.78,241.72,31.8]
[1758284548651,14.29559401,241.78,241.72,31.8]
[1758284549158,0.7,241.77,241.72,31.8]
[1758284549358,14.91030142,241.79,241.72,31.8]
[1758284549557,14.91030142,241.79,241.69,4.13750179]
[1758284549760,13.59559401,241.77,241.71,31.8]
[1758284550277,17.73186717,241.77,241.7,31.8]
[1758284552058,13.59559401,241.77,241.7,31.8]
[1758284552451,13.59559401,241.78,241.7,35.9373596]
[1758284552969,13.59559401,241.79,241.7,35.9373596]
[1758284557069,0.7,241.75,241.71,0.7]
[1758284558152,0.7,241.74,241.7,31.8]
[1758284558347,13.59559401,241.76,241.71,0.7]
[1758284558565,14.29559401,241.76,241.71,0.7]
[1758284559152,14.29559401,241.76,241.71,32.48]
[1758284559886,4.83532496,241.82,241.72,0.7]
[1758284560054,13.59559401,241.81,241.72,0.7]